Workbook

Sheet Wichtige Informationen
B3: Adapt+: Förderprogramm Anpassung an den Klimawandel
B6: Detailinformationen und Einreichung Projektantrag
B8: Alle relevanten Informationen zu Adapt+, zum Projektaufruf sowie zu den Themen und Kreiterien für Projekte sind unter folgendem Link verfügbar.
B9: Förderprogramm Anpassung an den Klimawandel - Adapt+. | H9: Dies ist Teil der Informationsplattform Anpassung an den Klimawandel des BAFU
B12: Der Vollständige Projektantrag ist bis spätestens am 31. August 2025 beim BAFU einzureichen. Unvollständige, zu spät eingegangene sowie nicht den Themen oder den Kriterien des Projektaufrufs entsprechende Projektanträge werde ohne Prüfung abgelehnt
B14: Aus der Erfüllung der Anforderungen kann kein Anspruch auf Förderung abgeleitet werden
B18: Bei Fragen rund um die Abwicklung des Projektantrags wenden Sie sich bitte an: | K18: helpadaptplus@bafu.admin.ch
B19: Bei generellen Fragen zum Programm wenden Sie sich bitte an: | K19: adaptplus@bafu.admin.ch
D23: Text | F23: Grün markierte Kästen enthalten zusätzliche Informationen zur Frage
D25: *Fragen | F25: Mit einem Stern markierte Fragen sind optional zu beantworten
F27: Dieses Icon ist ein Platzhalter für das Hochladen von zusätzlichen Dokumenten bei der definitiven Einreichung des Antrags

Sheet Projektträgerschaft
B3: Adapt+
B5: Projektträgerschaft
B7: Bitte geben Sie hier die Projektträgerschaft an und erfassen eine Kontaktperson sowie einen Stellvertreter (zwingend)
B9: Kontaktperson | D9: Stellvertretung
B11: Anrede: | D11: Anrede:
B14: Nachname | D14: Nachname
B17: Vorname | D17: Vorname
B20: E-Mail-Adresse | D20: E-Mail-Adresse
B23: Korrespondenzsprache | D23: Korrespondenzsprache
B26: Telefonnummer | D26: Telefonnummer
B29: Allgemeine Telefonnummer | D29: Allgemeine Telefonnummer
B35: Organisation
B37: Name Organisation | D37: Webseite*
D38: https://
B40: Abteilung*
B43: Strasse und Nummer
B46: PLZ
B49: Gemeinde
B52: Kanton
B55: UID*

Sheet Projektangaben
B3: Adapt+
B5: Allgemeine Projektangaben
B7: Bitte erfassen Sie hier die allgemeinen Angaben zum Projekt
B10: Allgemeine Projektangaben
B12: Titel des Projekts | D12: Ist Folgeprojekt von:*
D13: Eigener Beschrieb des Vorgängerprojekts
B15: Kurze Zusammenfassung des Projekts
B16: Beschreiben Sie ihr Projekt in einige Sätzen
B18: Langfristig angestrebte Veränderung bzw. Vision des Projekts
B22: Umsetzungsebene des Projekts
B24: Ebene der Umsetzung
B25: Auf welcher Ebene wird das Projekt umgesetzt? Bitte auswählen.
B27: In welchem Kanton wird das Projekt umgesetzt?
B30: In welcher Gemeinde wird das Projekt umgesetzt?
B31: Listen Sie alle betroffenen Gemeinden auf.
B33: Sprache
B37: Beitrag zur Anpassung
B39: Zu welchem Ziel der Anpassung trägt das Projekt bei?
B40: Bitte auswählen
B42: Wie trägt das Projekt dazu bei?
B43: Begrenzen auf max. 900 Zeichen
D53: Die Grundsätze der Anpassungsstrategie finden Sie hier.
B54: Beitrag zu den Grundsätzen der Anpassungsstrategie des Bundesrats
B56: Genügt die Massnahme den Grundsätzen der Anpassungsstrategie?
B57: 1) Nachhaltigkeit | D57: 3) Vereinbarkeit Anpassung und Klimaschutz (Reduktion der Emissionen)?
B59: 0 | E59: 0 | F59: Nicht förderbar | G59: Förderbar | J59: =IF(SUM(B59,B65,E59,E65)=4,TRUE,FALSE) -> FALSE
B63: 2) gemeinschaftliches Vorgehen von Bund, Kantonen, Gemeinden und Privaten? | D63: 4) Berücksichtigung wissenschaftlicher Erkenntnisse
B65: 0 | E65: 0
B70: Projektdurchführung
B72: Wurde das Projekt bereits gestartet? | D72: Wird das Projekt auch ohne Beitrag des Bundes umgesetzt?
B74: 0 | E74: 0 | F74: Nicht förderbar | G74: Förderbar | J74: =IF(SUM(B74,E74)>3,"FALSCH","WAHR") -> WAHR
B81: Projektorganisation
B83: Bitte erfassen Sie ein Organigramm (max. 1 A4 Seite)
B85: Partnerorganisationen des Projekts
B86: Name | C86: Ansprechpartner | D86: Schriftl. Einverst. | E86: Aktionen
D87: FALSE
D88: FALSE
D89: FALSE
D90: FALSE
D91: FALSE
B95: Dokument Projektorganisation (Organigramm und schriftliche Einverständnisse)
B96: Neues Dokument hochladen
B102: Sektor
B104: In welchem Sektor ist das Projekt angesiedelt?
B105: Bitte auswählen
B108: Risiken
B110: Welches Risiko behandelt das Projekt hauptsächlich?
B111: Bitte auswählen
B113: Welches Risiko wird ausserdem auch noch betrachtet?*
B114: Bitte auswählen
B116: Welches Risiko wird ausserdem auch noch betrachtet?*
B117: Bitte auswählen

Sheet Multiplikation
B3: Adapt+
B5: Fragen zur Multiplikation
B7: Bitte erfassen Sie die Angaben zur Multiplikation und laden Sie allfällige Dokumente hoch.
B9: Problemstellung
B11: Mit welcher Problemstellung beschäftigt sich Ihr Projekt konkret?
B18: Massnahmen
B20: Welche Anpassungsmassnahmen wird umgesetzt ? (Liste Beispiele)
B23: Zusätzliche Massnahme*
B27: Andere erprobte Massnahme*
B28: Wenn ja, welche? | D28: Sollten Ihre Massnahme in der Liste oben nicht abgebildet sein, dann können sie die Massnahme hier beschreiben.
B30: Erwähnen Sie dazu ein konkretes Projektbeispiel: | D30: Link zum Projektbeispiel
D31: https://
B37: Ausgangslage im Projektgebiet
B39: Wie ist die Ausgangslage im Projektgebiet im Bezug auf die Problemstellung?
B46: Abgeschlossene oder laufende Arbeiten
B48: Gibt es spezifische abgeschlossene oder laufende Arbeiten, die für die Problemstellung und das Projekt relevant sind?
B50: Ja
B51: Nein
B53: Beschreibung der Arbeiten und ihrer Relevanz
A55: 0
B58: Beitrag an die Anpassung an den Klimawandel
B60: Wie trägt das Projekt zum Schutz der Bevölkerung oder von Sachwerten u/o zur Steigerung der Anpassungsfähigkeit von Gesellschaft, Wirtschaft und Umwelt bei?
B65: Inwiefern ist das Projekt für die Anpassung an den Klimawandel in der betreffenden Region relevant?
B71: Beschreiben Sie den Anteil der Kosten Ihrer Massnahme, der Ihrer Meinung nach förderbar ist.
B77: Dokumente
B79: Allfällige weitere Dokumente zur Multiplikation
B80: Neues Dokument hochladen

Sheet Nutzen und Wirkung
B3: Adapt+
B5: Nutzen und Wirkungen
B7: Bitte erfassen Sie welche Nutzen und Wirkungen Ihr Projekt erzielt, wie mit Ihren Zielgruppen interagiert und welche Hindernisse Sie sehen.
E9: Die Wirkung einer Massnahme drückt ihren Einfluss auf einen Klimaindex oder den Zustand der natürlichen Systeme aus. Dabei kann es sich beispielsweise um eine Senkung der Temperatur auf einem öffentlichen Platz während einer Hitzewelle durch das Pflanzen von Bäumen oder um eine Verringerung der Austrocknung landwirtschaftlicher Böden durch die Anlage von Schwammelementen oder eine standortgerechte Bewirtschaftung handeln. Der Nutzen einer Massnahme beschreibt das Ausmass der Schäden, die dadurch vermieden werden, beispielsweise die Anzahl der Menschen, die von einer Wärmeminderung profitieren, oder die potenziell vermiedenen Ertragsausfälle in der Landwirtschaft.
B10: Fragen zur Wirkung
B12: Welche Wirkungen (Outcomes) werden im Projekt erwartet?
B17: Mit welchen Indikatoren und Erhebungsmethoden wird überprüft, ob die Wirkungsziele (Outcomes) erreicht werden?
B22: Welche Produkte (Outputs) werden im Projekt erstellt?
B27: Mit welcher Wirkungsdauer der Massnahme wird gerechnet (konservativ)?
B34: Fragen zu Zielgruppen
B36: Welche Zielgruppen sind im Projektgebiet betroffen?
B41: Wie werden diese Zielgruppen sensibilisiert und eingebunden?
B46: Werden Nutzungs- oder Zielkonflikte bei der Einführung der Massnahme erwartet? Wenn ja, welche?
B51: Fragen zu den Massnahmen
B53: Trägt die Anpassungsmassnahme direkt dazu bei, dass Schäden vermieden werden?
B56: 0
B59: Beschreibung wie die Massnahme dazu beiträgt
B65: Vermeidet die Anpassungsmassnahme irreversible Schäden?
B67: 0
B71: Beschreibung wie die Massnahme dazu beiträgt
B76: Reduziert die Anpassungsmassnahme gleichzeitig mehrere Risiken?
B78: 0
B81: Wenn ja, welche und wie?*
B86: Wie viele Menschen sind Nutzniesser der Anpassungsmassnahme?
B92: Welche weiteren, monetären Nutzen hat die Massnahme?
B97: Kann die Anpassungsmassnahme längerfristig dazu beitragen, dass Schäden vermieden werden oder die Anpassungsfähigkeit gesteigert wird?
B104: Dokumente
B106: Bitte laden Sie hier allfällige weitere Dokumente hoch
B108: Dokumente zu Nutzen und Wirkung
B109: Neues Dokument hochladen

Sheet Laufzeit
B3: Adapt+
B5: Laufzeit Projekt
B7: Laufzeit des Projekts
B10: Von | C10: 2025-11-01 | D10: Bis | E10: 2027-04-25 | G10: Laufzeit Projekt | I10: =DATEDIF(C10,E10,"m") -> 17 | L10: Monate
B13: Vereinfachter Zeitplan des Projekts
I15: 2025-01-01 | J15: 2025-02-01 | K15: 2025-03-01 | L15: 2025-04-01 | M15: 2025-05-01 | N15: 2025-06-01 | O15: 2025-07-01 | P15: 2025-08-01 | Q15: 2025-09-01 | R15: 2025-10-01 | S15: 2025-11-01 | T15: 2025-12-01 | U15: 2026-01-01 | V15: 2026-02-01 | W15: 2026-03-01 | X15: 2026-04-01 | Y15: 2026-05-01 | Z15: 2026-06-01 | AA15: 2026-07-01 | AB15: 2026-08-01 | AC15: 2026-09-01 | AD15: 2026-10-01 | AE15: 2026-11-01 | AF15: 2026-12-01 | AG15: 2027-01-01 | AH15: 2027-02-01 | AI15: 2027-03-01 | AJ15: 2027-04-01 | AK15: 2027-05-01 | AL15: 2027-06-01 | AM15: 2027-07-01 | AN15: 2027-08-01 | AO15: 2027-09-01 | AP15: 2027-10-01 | AQ15: 2027-11-01 | AR15: 2027-12-01 | AS15: 2028-01-01 | AT15: 2028-02-01 | AU15: 2028-03-01 | AV15: 2028-04-01 | AW15: 2028-05-01 | AX15: 2028-06-01 | AY15: 2028-07-01 | AZ15: 2028-08-01 | BA15: 2028-09-01 | BB15: 2028-10-01 | BC15: 2028-11-01 | BD15: 2028-12-01 | BE15: 2029-01-01 | BF15: 2029-02-01 | BG15: 2029-03-01 | BH15: 2029-04-01 | BI15: 2029-05-01 | BJ15: 2029-06-01 | BK15: 2029-07-01 | BL15: 2029-08-01 | BM15: 2029-09-01 | BN15: 2029-10-01 | BO15: 2029-11-01 | BP15: 2029-12-01
I16: =YEAR(C10) -> 2025 | U16: =YEAR(C10)+1 -> 2026 | AG16: =YEAR(E10) -> 2027 | AS16: 2028 | BE16: 2029
B17: Typ | C17: Beschrieb | G17: Begin | H17: Ende | I17: =I15 -> 2025-01-01 | J17: 2025-02-01 | K17: 2025-03-01 | L17: 2025-04-01 | M17: 2025-05-01 | N17: 2025-06-01 | O17: 2025-07-01 | P17: 2025-08-01 | Q17: 2025-09-01 | R17: 2025-10-01 | S17: 2025-11-01 | T17: 2025-12-01 | U17: 2026-01-01 | V17: 2026-02-01 | W17: 2026-03-01 | X17: 2026-04-01 | Y17: 2026-05-01 | Z17: 2026-06-01 | AA17: 2026-07-01 | AB17: 2026-08-01 | AC17: 2026-09-01 | AD17: 2026-10-01 | AE17: 2026-11-01 | AF17: 2026-12-01 | AG17: 2027-01-01 | AH17: 2027-02-01 | AI17: 2027-03-01 | AJ17: 2027-04-01 | AK17: 2027-05-01 | AL17: 2027-06-01 | AM17: 2027-07-01 | AN17: 2027-08-01 | AO17: 2027-09-01 | AP17: 2027-10-01 | AQ17: 2027-11-01 | AR17: 2027-12-01 | AS17: =AS15 -> 2028-01-01 | AT17: 2028-02-01 | AU17: 2028-03-01 | AV17: 2028-04-01 | AW17: 2028-05-01 | AX17: 2028-06-01 | AY17: 2028-07-01 | AZ17: 2028-08-01 | BA17: 2028-09-01 | BB17: 2028-10-01 | BC17: 2028-11-01 | BD17: 2028-12-01 | BE17: 2029-01-01 | BF17: 2029-02-01 | BG17: 2029-03-01 | BH17: 2029-04-01 | BI17: 2029-05-01 | BJ17: 2029-06-01 | BK17: 2029-07-01 | BL17: 2029-08-01 | BM17: 2029-09-01 | BN17: 2029-10-01 | BO17: 2029-11-01 | BP17: 2029-12-01
B18: Meilenstein | C18: M1: Abschluss der Vorarbeiten zur Massnahme | G18: 2025-01-01 | H18: 2025-10-01 | I18: =IF(AND(I$17>=$G18,I$17<=$H18),1,0) -> 1 | J18: =IF(AND(J$17>=$G18,J$17<=$H18),1,0) -> 1 | K18: 1 | L18: 1 | M18: 1 | N18: 1 | O18: 1 | P18: 1 | Q18: 1 | R18: 1 | S18: 0 | T18: 0 | U18: 0 | V18: 0 | W18: 0 | X18: 0 | Y18: 0 | Z18: 0 | AA18: 0 | AB18: 0 | AC18: 0 | AD18: 0 | AE18: 0 | AF18: 0 | AG18: 0 | AH18: 0 | AI18: 0 | AJ18: 0 | AK18: 0 | AL18: 0 | AM18: 0 | AN18: 0 | AO18: 0 | AP18: 0 | AQ18: 0 | AR18: 0 | AS18: =IF(AND(AS$17>=$G18,AS$17<=$H18),1,0) -> 0 | AT18: 0 | AU18: 0 | AV18: 0 | AW18: 0 | AX18: 0 | AY18: 0 | AZ18: 0 | BA18: 0 | BB18: 0 | BC18: 0 | BD18: 0 | BE18: 0 | BF18: 0 | BG18: 0 | BH18: 0 | BI18: 0 | BJ18: 0 | BK18: 0 | BL18: 0 | BM18: 0 | BN18: 0 | BO18: 0 | BP18: 0
B19: Arbeitspaket | C19: AP1.2: Instandsetzung der Arbeiten | G19: 2025-04-01 | H19: 2026-08-08 | I19: =IF(AND(I$17>=$G19,I$17<=$H19),1,0) -> 0 | J19: 0 | K19: 0 | L19: 1 | M19: 1 | N19: 1 | O19: 1 | P19: 1 | Q19: 1 | R19: 1 | S19: 1 | T19: 1 | U19: 1 | V19: 1 | W19: 1 | X19: 1 | Y19: 1 | Z19: 1 | AA19: 1 | AB19: 1 | AC19: 0 | AD19: 0 | AE19: 0 | AF19: 0 | AG19: 0 | AH19: 0 | AI19: 0 | AJ19: 0 | AK19: 0 | AL19: 0 | AM19: 0 | AN19: 0 | AO19: 0 | AP19: 0 | AQ19: 0 | AR19: 0 | AS19: 0 | AT19: 0 | AU19: 0 | AV19: 0 | AW19: 0 | AX19: 0 | AY19: 0 | AZ19: 0 | BA19: 0 | BB19: 0 | BC19: 0 | BD19: 0 | BE19: 0 | BF19: 0 | BG19: 0 | BH19: 0 | BI19: 0 | BJ19: 0 | BK19: 0 | BL19: 0 | BM19: 0 | BN19: 0 | BO19: 0 | BP19: 0
B20: Arbeitspaket | G20: 2025-11-01 | H20: 2026-12-01 | I20: 0 | J20: 0 | K20: 0 | L20: 0 | M20: 0 | N20: 0 | O20: 0 | P20: 0 | Q20: 0 | R20: 0 | S20: 1 | T20: 1 | U20: 1 | V20: 1 | W20: 1 | X20: 1 | Y20: 1 | Z20: 1 | AA20: 1 | AB20: 1 | AC20: 1 | AD20: 1 | AE20: 1 | AF20: 1 | AG20: 0 | AH20: 0 | AI20: 0 | AJ20: 0 | AK20: 0 | AL20: 0 | AM20: 0 | AN20: 0 | AO20: 0 | AP20: 0 | AQ20: 0 | AR20: 0 | AS20: 0 | AT20: 0 | AU20: 0 | AV20: 0 | AW20: 0 | AX20: 0 | AY20: 0 | AZ20: 0 | BA20: 0 | BB20: 0 | BC20: 0 | BD20: 0 | BE20: 0 | BF20: 0 | BG20: 0 | BH20: 0 | BI20: 0 | BJ20: 0 | BK20: 0 | BL20: 0 | BM20: 0 | BN20: 0 | BO20: 0 | BP20: 0
B21: Andere | G21: 2026-10-01 | H21: 2027-10-01 | I21: 0 | J21: 0 | K21: 0 | L21: 0 | M21: 0 | N21: 0 | O21: 0 | P21: 0 | Q21: 0 | R21: 0 | S21: 0 | T21: 0 | U21: 0 | V21: 0 | W21: 0 | X21: 0 | Y21: 0 | Z21: 0 | AA21: 0 | AB21: 0 | AC21: 0 | AD21: 1 | AE21: 1 | AF21: 1 | AG21: 1 | AH21: 1 | AI21: 1 | AJ21: 1 | AK21: 1 | AL21: 1 | AM21: 1 | AN21: 1 | AO21: 1 | AP21: 1 | AQ21: 0 | AR21: 0 | AS21: 0 | AT21: 0 | AU21: 0 | AV21: 0 | AW21: 0 | AX21: 0 | AY21: 0 | AZ21: 0 | BA21: 0 | BB21: 0 | BC21: 0 | BD21: 0 | BE21: 0 | BF21: 0 | BG21: 0 | BH21: 0 | BI21: 0 | BJ21: 0 | BK21: 0 | BL21: 0 | BM21: 0 | BN21: 0 | BO21: 0 | BP21: 0
B22: Arbeitspaket | G22: 2025-06-01 | H22: 2025-08-01 | I22: 0 | J22: 0 | K22: 0 | L22: 0 | M22: 0 | N22: 1 | O22: 1 | P22: 1 | Q22: 0 | R22: 0 | S22: 0 | T22: 0 | U22: 0 | V22: 0 | W22: 0 | X22: 0 | Y22: 0 | Z22: 0 | AA22: 0 | AB22: 0 | AC22: 0 | AD22: 0 | AE22: 0 | AF22: 0 | AG22: 0 | AH22: 0 | AI22: 0 | AJ22: 0 | AK22: 0 | AL22: 0 | AM22: 0 | AN22: 0 | AO22: 0 | AP22: 0 | AQ22: 0 | AR22: 0 | AS22: 0 | AT22: 0 | AU22: 0 | AV22: 0 | AW22: 0 | AX22: 0 | AY22: 0 | AZ22: 0 | BA22: 0 | BB22: 0 | BC22: 0 | BD22: 0 | BE22: 0 | BF22: 0 | BG22: 0 | BH22: 0 | BI22: 0 | BJ22: 0 | BK22: 0 | BL22: 0 | BM22: 0 | BN22: 0 | BO22: 0 | BP22: 0
B23: Meilenstein | G23: 2026-01-01 | H23: 2026-12-01 | I23: 0 | J23: 0 | K23: 0 | L23: 0 | M23: 0 | N23: 0 | O23: 0 | P23: 0 | Q23: 0 | R23: 0 | S23: 0 | T23: 0 | U23: 1 | V23: 1 | W23: 1 | X23: 1 | Y23: 1 | Z23: 1 | AA23: 1 | AB23: 1 | AC23: 1 | AD23: 1 | AE23: 1 | AF23: 1 | AG23: 0 | AH23: 0 | AI23: 0 | AJ23: 0 | AK23: 0 | AL23: 0 | AM23: 0 | AN23: 0 | AO23: 0 | AP23: 0 | AQ23: 0 | AR23: 0 | AS23: 0 | AT23: 0 | AU23: 0 | AV23: 0 | AW23: 0 | AX23: 0 | AY23: 0 | AZ23: 0 | BA23: 0 | BB23: 0 | BC23: 0 | BD23: 0 | BE23: 0 | BF23: 0 | BG23: 0 | BH23: 0 | BI23: 0 | BJ23: 0 | BK23: 0 | BL23: 0 | BM23: 0 | BN23: 0 | BO23: 0 | BP23: 0
B24: Arbeitspaket | C24: Bearbeitung | G24: 2026-12-01 | H24: 2028-01-01 | I24: 0 | J24: 0 | K24: 0 | L24: 0 | M24: 0 | N24: 0 | O24: 0 | P24: 0 | Q24: 0 | R24: 0 | S24: 0 | T24: 0 | U24: 0 | V24: 0 | W24: 0 | X24: 0 | Y24: 0 | Z24: 0 | AA24: 0 | AB24: 0 | AC24: 0 | AD24: 0 | AE24: 0 | AF24: 1 | AG24: 1 | AH24: 1 | AI24: 1 | AJ24: 1 | AK24: 1 | AL24: 1 | AM24: 1 | AN24: 1 | AO24: 1 | AP24: 1 | AQ24: 1 | AR24: 1 | AS24: 1 | AT24: 0 | AU24: 0 | AV24: 0 | AW24: 0 | AX24: 0 | AY24: 0 | AZ24: 0 | BA24: 0 | BB24: 0 | BC24: 0 | BD24: 0 | BE24: 0 | BF24: 0 | BG24: 0 | BH24: 0 | BI24: 0 | BJ24: 0 | BK24: 0 | BL24: 0 | BM24: 0 | BN24: 0 | BO24: 0 | BP24: 0
B25: Abschluss | C25: Abschluss des Projekts und finaler Bericht | G25: 2027-12-01 | H25: 2027-12-01 | I25: 0 | J25: 0 | K25: 0 | L25: 0 | M25: 0 | N25: 0 | O25: 0 | P25: 0 | Q25: 0 | R25: 0 | S25: 0 | T25: =IF(AND(T$17>=$G25,T$17<=$H25),1,0) -> 0 | U25: 0 | V25: 0 | W25: 0 | X25: 0 | Y25: 0 | Z25: 0 | AA25: 0 | AB25: 0 | AC25: 0 | AD25: 0 | AE25: 0 | AF25: 0 | AG25: 0 | AH25: 0 | AI25: 0 | AJ25: =IF(AND(AJ$17>=$G25,AJ$17<=$H25),1,0) -> 0 | AK25: 0 | AL25: 0 | AM25: 0 | AN25: 0 | AO25: 0 | AP25: 0 | AQ25: 0 | AR25: 1 | AS25: 0 | AT25: 0 | AU25: 0 | AV25: 0 | AW25: 0 | AX25: 0 | AY25: 0 | AZ25: 0 | BA25: 0 | BB25: 0 | BC25: 0 | BD25: 0 | BE25: 0 | BF25: 0 | BG25: 0 | BH25: 0 | BI25: 0 | BJ25: 0 | BK25: 0 | BL25: 0 | BM25: 0 | BN25: 0 | BO25: 0 | BP25: 0
G26: 2025-01-01 | H26: 2028-10-01 | I26: 1 | J26: 1 | K26: 1 | L26: 1 | M26: 1 | N26: 1 | O26: 1 | P26: 1 | Q26: 1 | R26: 1 | S26: 1 | T26: 1 | U26: 1 | V26: 1 | W26: 1 | X26: 1 | Y26: 1 | Z26: 1 | AA26: 1 | AB26: 1 | AC26: 1 | AD26: 1 | AE26: 1 | AF26: 1 | AG26: 1 | AH26: 1 | AI26: 1 | AJ26: 1 | AK26: 1 | AL26: 1 | AM26: 1 | AN26: 1 | AO26: 1 | AP26: 1 | AQ26: 1 | AR26: 1 | AS26: 1 | AT26: 1 | AU26: 1 | AV26: 1 | AW26: 1 | AX26: 1 | AY26: 1 | AZ26: 1 | BA26: 1 | BB26: 1 | BC26: 0 | BD26: 0 | BE26: 0 | BF26: 0 | BG26: 0 | BH26: 0 | BI26: 0 | BJ26: 0 | BK26: =IF(AND(BK$17>=$G26,BK$17<=$H26),1,0) -> 0 | BL26: 0 | BM26: 0 | BN26: 0 | BO26: 0 | BP26: 0
I27: =IF(AND(I$17>=$G27,I$17<=$H27),1,0) -> 0 | J27: 0 | K27: 0 | L27: 0 | M27: 0 | N27: 0 | O27: 0 | P27: 0 | Q27: 0 | R27: 0 | S27: 0 | T27: 0 | U27: 0 | V27: 0 | W27: 0 | X27: 0 | Y27: =IF(AND(Y$17>=$G27,Y$17<=$H27),1,0) -> 0 | Z27: 0 | AA27: 0 | AB27: 0 | AC27: 0 | AD27: 0 | AE27: 0 | AF27: 0 | AG27: 0 | AH27: 0 | AI27: 0 | AJ27: 0 | AK27: 0 | AL27: 0 | AM27: 0 | AN27: 0 | AO27: =IF(AND(AO$17>=$G27,AO$17<=$H27),1,0) -> 0 | AP27: 0 | AQ27: 0 | AR27: 0 | AS27: 0 | AT27: 0 | AU27: 0 | AV27: 0 | AW27: 0 | AX27: 0 | AY27: 0 | AZ27: 0 | BA27: 0 | BB27: 0 | BC27: 0 | BD27: 0 | BE27: =IF(AND(BE$17>=$G27,BE$17<=$H27),1,0) -> 0 | BF27: 0 | BG27: 0 | BH27: 0 | BI27: 0 | BJ27: 0 | BK27: 0 | BL27: 0 | BM27: 0 | BN27: 0 | BO27: 0 | BP27: 0
I28: 0 | J28: 0 | K28: 0 | L28: 0 | M28: 0 | N28: 0 | O28: 0 | P28: 0 | Q28: 0 | R28: 0 | S28: 0 | T28: 0 | U28: 0 | V28: 0 | W28: 0 | X28: 0 | Y28: 0 | Z28: 0 | AA28: 0 | AB28: 0 | AC28: 0 | AD28: 0 | AE28: 0 | AF28: 0 | AG28: 0 | AH28: 0 | AI28: 0 | AJ28: 0 | AK28: 0 | AL28: 0 | AM28: 0 | AN28: 0 | AO28: 0 | AP28: 0 | AQ28: 0 | AR28: 0 | AS28: 0 | AT28: 0 | AU28: 0 | AV28: 0 | AW28: 0 | AX28: 0 | AY28: 0 | AZ28: 0 | BA28: 0 | BB28: 0 | BC28: 0 | BD28: 0 | BE28: 0 | BF28: 0 | BG28: 0 | BH28: 0 | BI28: 0 | BJ28: 0 | BK28: 0 | BL28: 0 | BM28: 0 | BN28: 0 | BO28: 0 | BP28: 0
I29: 0 | J29: 0 | K29: 0 | L29: 0 | M29: 0 | N29: 0 | O29: 0 | P29: 0 | Q29: 0 | R29: 0 | S29: 0 | T29: 0 | U29: 0 | V29: 0 | W29: 0 | X29: 0 | Y29: 0 | Z29: 0 | AA29: 0 | AB29: 0 | AC29: 0 | AD29: 0 | AE29: 0 | AF29: 0 | AG29: 0 | AH29: 0 | AI29: 0 | AJ29: 0 | AK29: 0 | AL29: 0 | AM29: 0 | AN29: 0 | AO29: 0 | AP29: 0 | AQ29: 0 | AR29: 0 | AS29: 0 | AT29: 0 | AU29: 0 | AV29: 0 | AW29: 0 | AX29: 0 | AY29: 0 | AZ29: 0 | BA29: 0 | BB29: 0 | BC29: 0 | BD29: 0 | BE29: 0 | BF29: 0 | BG29: 0 | BH29: 0 | BI29: 0 | BJ29: 0 | BK29: 0 | BL29: 0 | BM29: 0 | BN29: 0 | BO29: 0 | BP29: 0
I30: 0 | J30: 0 | K30: 0 | L30: 0 | M30: 0 | N30: 0 | O30: 0 | P30: 0 | Q30: 0 | R30: 0 | S30: 0 | T30: 0 | U30: 0 | V30: 0 | W30: 0 | X30: 0 | Y30: 0 | Z30: 0 | AA30: 0 | AB30: 0 | AC30: 0 | AD30: 0 | AE30: 0 | AF30: 0 | AG30: 0 | AH30: 0 | AI30: 0 | AJ30: 0 | AK30: 0 | AL30: 0 | AM30: 0 | AN30: 0 | AO30: 0 | AP30: 0 | AQ30: 0 | AR30: 0 | AS30: 0 | AT30: 0 | AU30: 0 | AV30: 0 | AW30: 0 | AX30: 0 | AY30: 0 | AZ30: 0 | BA30: 0 | BB30: 0 | BC30: 0 | BD30: 0 | BE30: 0 | BF30: 0 | BG30: 0 | BH30: 0 | BI30: 0 | BJ30: 0 | BK30: 0 | BL30: 0 | BM30: 0 | BN30: 0 | BO30: 0 | BP30: 0
I31: 0 | J31: 0 | K31: 0 | L31: 0 | M31: 0 | N31: 0 | O31: 0 | P31: 0 | Q31: 0 | R31: 0 | S31: 0 | T31: 0 | U31: 0 | V31: 0 | W31: 0 | X31: 0 | Y31: 0 | Z31: 0 | AA31: 0 | AB31: 0 | AC31: 0 | AD31: 0 | AE31: 0 | AF31: 0 | AG31: 0 | AH31: 0 | AI31: 0 | AJ31: 0 | AK31: 0 | AL31: 0 | AM31: 0 | AN31: 0 | AO31: 0 | AP31: 0 | AQ31: 0 | AR31: 0 | AS31: 0 | AT31: 0 | AU31: 0 | AV31: 0 | AW31: 0 | AX31: 0 | AY31: 0 | AZ31: 0 | BA31: 0 | BB31: 0 | BC31: 0 | BD31: 0 | BE31: 0 | BF31: 0 | BG31: 0 | BH31: 0 | BI31: 0 | BJ31: 0 | BK31: 0 | BL31: 0 | BM31: 0 | BN31: 0 | BO31: 0 | BP31: 0
I32: 0 | J32: 0 | K32: 0 | L32: 0 | M32: 0 | N32: 0 | O32: 0 | P32: 0 | Q32: 0 | R32: 0 | S32: 0 | T32: 0 | U32: 0 | V32: 0 | W32: 0 | X32: 0 | Y32: 0 | Z32: 0 | AA32: 0 | AB32: 0 | AC32: 0 | AD32: 0 | AE32: 0 | AF32: 0 | AG32: 0 | AH32: 0 | AI32: 0 | AJ32: 0 | AK32: 0 | AL32: 0 | AM32: 0 | AN32: 0 | AO32: 0 | AP32: 0 | AQ32: 0 | AR32: 0 | AS32: 0 | AT32: 0 | AU32: 0 | AV32: 0 | AW32: 0 | AX32: 0 | AY32: 0 | AZ32: 0 | BA32: 0 | BB32: 0 | BC32: 0 | BD32: 0 | BE32: 0 | BF32: 0 | BG32: 0 | BH32: 0 | BI32: 0 | BJ32: 0 | BK32: 0 | BL32: 0 | BM32: 0 | BN32: 0 | BO32: 0 | BP32: 0
I33: 0 | J33: 0 | K33: 0 | L33: 0 | M33: 0 | N33: 0 | O33: 0 | P33: 0 | Q33: 0 | R33: 0 | S33: 0 | T33: 0 | U33: 0 | V33: 0 | W33: 0 | X33: 0 | Y33: 0 | Z33: 0 | AA33: 0 | AB33: 0 | AC33: 0 | AD33: 0 | AE33: 0 | AF33: 0 | AG33: 0 | AH33: 0 | AI33: 0 | AJ33: 0 | AK33: 0 | AL33: 0 | AM33: 0 | AN33: 0 | AO33: 0 | AP33: 0 | AQ33: 0 | AR33: 0 | AS33: 0 | AT33: 0 | AU33: 0 | AV33: 0 | AW33: 0 | AX33: 0 | AY33: 0 | AZ33: 0 | BA33: 0 | BB33: 0 | BC33: 0 | BD33: 0 | BE33: 0 | BF33: 0 | BG33: 0 | BH33: 0 | BI33: 0 | BJ33: 0 | BK33: 0 | BL33: 0 | BM33: 0 | BN33: 0 | BO33: 0 | BP33: 0
I34: 0 | J34: 0 | K34: 0 | L34: 0 | M34: 0 | N34: 0 | O34: 0 | P34: 0 | Q34: 0 | R34: 0 | S34: 0 | T34: 0 | U34: 0 | V34: 0 | W34: 0 | X34: 0 | Y34: 0 | Z34: 0 | AA34: 0 | AB34: 0 | AC34: 0 | AD34: 0 | AE34: 0 | AF34: 0 | AG34: 0 | AH34: 0 | AI34: 0 | AJ34: 0 | AK34: 0 | AL34: 0 | AM34: 0 | AN34: 0 | AO34: 0 | AP34: 0 | AQ34: 0 | AR34: 0 | AS34: 0 | AT34: 0 | AU34: 0 | AV34: 0 | AW34: 0 | AX34: 0 | AY34: 0 | AZ34: 0 | BA34: 0 | BB34: 0 | BC34: 0 | BD34: 0 | BE34: 0 | BF34: 0 | BG34: 0 | BH34: 0 | BI34: 0 | BJ34: 0 | BK34: 0 | BL34: 0 | BM34: 0 | BN34: 0 | BO34: 0 | BP34: 0
I35: 0 | J35: 0 | K35: 0 | L35: 0 | M35: 0 | N35: 0 | O35: 0 | P35: 0 | Q35: 0 | R35: 0 | S35: 0 | T35: 0 | U35: 0 | V35: 0 | W35: 0 | X35: 0 | Y35: 0 | Z35: 0 | AA35: 0 | AB35: 0 | AC35: 0 | AD35: 0 | AE35: 0 | AF35: 0 | AG35: 0 | AH35: 0 | AI35: 0 | AJ35: 0 | AK35: 0 | AL35: 0 | AM35: 0 | AN35: 0 | AO35: 0 | AP35: 0 | AQ35: 0 | AR35: 0 | AS35: 0 | AT35: 0 | AU35: 0 | AV35: 0 | AW35: 0 | AX35: 0 | AY35: 0 | AZ35: 0 | BA35: 0 | BB35: 0 | BC35: 0 | BD35: 0 | BE35: 0 | BF35: 0 | BG35: 0 | BH35: 0 | BI35: 0 | BJ35: 0 | BK35: 0 | BL35: 0 | BM35: 0 | BN35: 0 | BO35: 0 | BP35: 0
I36: 0 | J36: 0 | K36: 0 | L36: 0 | M36: 0 | N36: 0 | O36: 0 | P36: 0 | Q36: 0 | R36: 0 | S36: 0 | T36: 0 | U36: 0 | V36: 0 | W36: 0 | X36: 0 | Y36: 0 | Z36: 0 | AA36: 0 | AB36: 0 | AC36: 0 | AD36: 0 | AE36: 0 | AF36: 0 | AG36: 0 | AH36: 0 | AI36: 0 | AJ36: 0 | AK36: 0 | AL36: 0 | AM36: 0 | AN36: 0 | AO36: 0 | AP36: 0 | AQ36: 0 | AR36: 0 | AS36: 0 | AT36: 0 | AU36: 0 | AV36: 0 | AW36: 0 | AX36: 0 | AY36: 0 | AZ36: 0 | BA36: 0 | BB36: 0 | BC36: 0 | BD36: 0 | BE36: 0 | BF36: 0 | BG36: 0 | BH36: 0 | BI36: 0 | BJ36: 0 | BK36: 0 | BL36: 0 | BM36: 0 | BN36: 0 | BO36: 0 | BP36: 0
I37: 0 | J37: 0 | K37: 0 | L37: 0 | M37: 0 | N37: 0 | O37: 0 | P37: 0 | Q37: 0 | R37: 0 | S37: 0 | T37: 0 | U37: 0 | V37: 0 | W37: 0 | X37: 0 | Y37: 0 | Z37: 0 | AA37: 0 | AB37: 0 | AC37: 0 | AD37: 0 | AE37: 0 | AF37: 0 | AG37: 0 | AH37: 0 | AI37: 0 | AJ37: 0 | AK37: 0 | AL37: 0 | AM37: 0 | AN37: 0 | AO37: 0 | AP37: 0 | AQ37: 0 | AR37: 0 | AS37: 0 | AT37: 0 | AU37: 0 | AV37: 0 | AW37: 0 | AX37: 0 | AY37: 0 | AZ37: 0 | BA37: 0 | BB37: 0 | BC37: 0 | BD37: 0 | BE37: 0 | BF37: 0 | BG37: 0 | BH37: 0 | BI37: 0 | BJ37: 0 | BK37: 0 | BL37: 0 | BM37: 0 | BN37: 0 | BO37: 0 | BP37: 0
I38: 0 | J38: 0 | K38: 0 | L38: 0 | M38: 0 | N38: 0 | O38: 0 | P38: 0 | Q38: 0 | R38: 0 | S38: 0 | T38: 0 | U38: 0 | V38: 0 | W38: 0 | X38: 0 | Y38: 0 | Z38: 0 | AA38: 0 | AB38: 0 | AC38: 0 | AD38: 0 | AE38: 0 | AF38: 0 | AG38: 0 | AH38: 0 | AI38: 0 | AJ38: 0 | AK38: 0 | AL38: 0 | AM38: 0 | AN38: 0 | AO38: 0 | AP38: 0 | AQ38: 0 | AR38: 0 | AS38: 0 | AT38: 0 | AU38: 0 | AV38: 0 | AW38: 0 | AX38: 0 | AY38: 0 | AZ38: 0 | BA38: 0 | BB38: 0 | BC38: 0 | BD38: 0 | BE38: 0 | BF38: 0 | BG38: 0 | BH38: 0 | BI38: 0 | BJ38: 0 | BK38: 0 | BL38: 0 | BM38: 0 | BN38: 0 | BO38: 0 | BP38: 0
I39: 0 | J39: 0 | K39: 0 | L39: 0 | M39: 0 | N39: 0 | O39: 0 | P39: 0 | Q39: 0 | R39: 0 | S39: 0 | T39: 0 | U39: 0 | V39: 0 | W39: 0 | X39: 0 | Y39: 0 | Z39: 0 | AA39: 0 | AB39: 0 | AC39: 0 | AD39: 0 | AE39: 0 | AF39: 0 | AG39: 0 | AH39: 0 | AI39: 0 | AJ39: 0 | AK39: 0 | AL39: 0 | AM39: 0 | AN39: 0 | AO39: 0 | AP39: 0 | AQ39: 0 | AR39: 0 | AS39: 0 | AT39: 0 | AU39: 0 | AV39: 0 | AW39: 0 | AX39: 0 | AY39: 0 | AZ39: 0 | BA39: 0 | BB39: 0 | BC39: 0 | BD39: 0 | BE39: 0 | BF39: 0 | BG39: 0 | BH39: 0 | BI39: 0 | BJ39: 0 | BK39: 0 | BL39: 0 | BM39: 0 | BN39: 0 | BO39: 0 | BP39: 0
I40: 0 | J40: 0 | K40: 0 | L40: 0 | M40: 0 | N40: 0 | O40: 0 | P40: 0 | Q40: 0 | R40: 0 | S40: 0 | T40: 0 | U40: 0 | V40: 0 | W40: 0 | X40: 0 | Y40: 0 | Z40: 0 | AA40: 0 | AB40: 0 | AC40: 0 | AD40: 0 | AE40: 0 | AF40: 0 | AG40: 0 | AH40: 0 | AI40: 0 | AJ40: 0 | AK40: 0 | AL40: 0 | AM40: 0 | AN40: 0 | AO40: 0 | AP40: 0 | AQ40: 0 | AR40: 0 | AS40: 0 | AT40: 0 | AU40: 0 | AV40: 0 | AW40: 0 | AX40: 0 | AY40: 0 | AZ40: 0 | BA40: 0 | BB40: 0 | BC40: 0 | BD40: 0 | BE40: 0 | BF40: 0 | BG40: 0 | BH40: 0 | BI40: 0 | BJ40: 0 | BK40: 0 | BL40: 0 | BM40: 0 | BN40: 0 | BO40: 0 | BP40: 0
B44: Zeit- und Arbeitsplan detailliert
B46: Laden Sie hier den detaillierten Jahresplan des Projekts hoch
B47: Neues Dokument hochladen | G47: Halten Sie allfällige zusätzliche Dokumente zu "Zeit- und Arbeitsplan" bereit um, diese zu gegebener Zeit an Adapt+ zu senden.

Sheet Kosten
B3: Adapt+
B5: Kosten des Projekts und Fördersatz
B7: Erfassen Sie hier zuerst den maximal möglichen Fördersatz bevor Sie die Kosten des Projekts darlegen.
J8: Die Angaben zur Bestimmung des Fördersatzes finden Sie in den Vollzugsmitteilungen im Kapitel 3.2
B10: Bestimmung des Fördersatzes
B12: Handelt es sich beim Projekt um eine direkte oder indirekte Anpassung?
G15: 0
B17: Handelt es sich beim Projekt um eine Projektplanung oder um eine Projektumsetzung?
G21: 0
B23: Trägt Ihr Projekt zur Vermeidung von irreversiblen Schäden bei? (siehe Frage 4.XZ)
G26: 0
K27: Fördersatz | L27: =IF(G15<>0,IF(G15=1,25,IF(AND(G15=1,G21=1),NA,IF(AND(G15=2,G21=1),30,40))),"") ->  | M27: %
B28: Reduziert Ihr Projekt gleichzeitig mehrere Risiken? (siehe Frage 4.XY)
G29: 0 | K29: Zusatz | L29: =IF(G15<>0,IF(G15=1,0,IF(SUM(G26,G29)<=3,10,0)),"") ->  | M29: %
K31: max. möglicher Fördersatz | L31: =IF(G36=FALSE,SUM(L29,L27),D39) -> 0 | M31: %
B35: Wünschen Sie einen spezifischen Fördersatz, tiefer als der maximal mögliche Fördersatz?
G36: FALSE
G37: =IF(G36=TRUE,1,2) -> 2
B38: Falls ja, geben Sie den Fördersatz oder den maximalen Betrag ein | G38: 1
C39: max. Fördersatz
H42: FALSE
B46: Kosten des Projekts
B48: Erfassen Sie die Kosten zum Projekt. Dabei wird zwischen Gesamtkosten und anrechenbaren Kosten unterschieden.
B49: Zurzeit ist hier lediglich ein Rechenbeispiel erfasst zum besseren Verständnis. Dieses können Sie mit Ihren Angaben überschreiben
B51: Gesamtkosten
B53: Jahr | C53: Kosten [CHF] | F53: Aktionen
B54: 2025 | C54: 257500
B55: 2026 | C55: 270000
B56: 2027 | C56: 70000
B57: 2028 | C57: 0
B58: 2029 | C58: 0
B64: Anrechenbare Kosten
B66: Jahr | C66: Kostentyp | E66: Betroffene Meilensteine | F66: Anzahl h | G66: Stundenansatz | H66: Kosten (CHF) | J66: max. Beitrag Bund (kalkulatorisch) | N66: Die Angaben zu den anrechenbaren Kosten finden Sie in den Vollzugsmitteilungen unter folgendem Link
B68: 2025 | C68: Planung 1 | E68: M1 | H68: 10000 | J68: =$L$31/100*H68 -> 0
B69: 2025 | C69: Planung 2 | E69: M1 | H69: 5000 | J69: =$L$31/100*H69 -> 0
B70: 2026 | C70: Realisierung AP1 | E70: M1 | H70: 20000 | J70: 0
B71: 2026 | C71: Realisierung AP2 | E71: M2 | H71: 20000 | J71: 0
B72: 2027 | C72: Realisierung AP3 | E72: M3 | H72: 20000 | J72: 0 | N72: Detaillierte Begründung muss via separate Dokumente hochgeladen werden
B73: 2027 | C73: Realisierung AP4 | E73: M4 | H73: 20000 | J73: 0 | N73: Neues Dokument hochladen
B80: Total anrechenbare Kosten
B82: Jahr | C82: Total anrechenbare Kosten | F82: Total max. Beitrag Adapt+ kalkulatorisch
B83: 2025 | C83: =SUMIF($B$68:$B$77,B83,$H$68:$I$77) -> 15000 | F83: =SUMIF($B$68:$B$77,B83,$J$68:$L$77) -> 0
B84: 2026 | C84: =SUMIF($B$68:$B$77,B84,$H$68:$I$77) -> 40000 | F84: =SUMIF($B$68:$B$77,B84,$J$68:$L$77) -> 0
B85: 2027 | C85: =SUMIF($B$68:$B$77,B85,$H$68:$I$77) -> 40000 | F85: =SUMIF($B$68:$B$77,B85,$J$68:$L$77) -> 0
B86: 2028 | C86: =SUMIF($B$68:$B$77,B86,$H$68:$I$77) -> 0 | F86: =SUMIF($B$68:$B$77,B86,$J$68:$L$77) -> 0
B87: 2029 | C87: 0 | F87: 0
B88: Total | C88: =SUM(C83:E87) -> 95000 | F88: =SUM(F83:H87) -> 0 | G88: 200000
B92: Verfügbare Mittel
B94: Vorhandene Mittel
B95: Erfassen Sie die vorhandenen Mittel zum Projekt. Dabei wird zwischen Eigenmittel, Drittmittel und Drittmittel aus weiteren Bundesbeiträgen unterschieden
B97: Jahr | C97: Typ Mittel | G97: Kosten (CHF) | J97: Quelle der Mittel
B98: 2025 | C98: Eigenmittel | I98: 100000
B99: 2025 | C99: Drittmittel | I99: 150000
B100: 2026 | C100: Eigenmittel | I100: 100000
B101: 2026 | C101: Drittmittel | I101: 50000
B102: 2026 | C102: Drittmittel aus weiteren Bundesbeiträgen | I102: 10000
B103: 2026 | C103: Eigenmittel | I103: 100000
B104: 2027 | C104: Drittmittel | I104: 50000
B110: Total vorhandene Mittel
B112: Jahr | C112: Eigenmittel | F112: Drittmittel | I112: Drittmittel aus weiteren Bundesbeiträgen | M112: Total Jahr
B113: 2025 | C113: =SUMIFS($I$98:$I$108,$B$98:$B$108,B113,$C$98:$C$108,C$112) -> 100000 | F113: =SUMIFS($I$98:$I$108,$B$98:$B$108,$B113,$C$98:$C$108,F$112) -> 150000 | I113: =SUMIFS($I$98:$I$108,$B$98:$B$108,$B113,$C$98:$C$108,I$112) -> 0 | M113: =SUM(C113:K113) -> 250000 | O113: =IF(OR(ISBLANK(I113),I113=0),1,0) -> 1 | P113: =SUM(O113:O115) -> 2
B114: 2026 | C114: =SUMIFS($I$98:$I$108,$B$98:$B$108,B114,$C$98:$C$108,C$112) -> 200000 | F114: 50000 | I114: =SUMIFS($I$98:$I$108,$B$98:$B$108,$B114,$C$98:$C$108,I$112) -> 10000 | M114: 260000 | O114: =IF(OR(ISBLANK(I114),I114=0),1,0) -> 0
B115: 2027 | C115: =SUMIFS($I$98:$I$108,$B$98:$B$108,B115,$C$98:$C$108,C$112) -> 0 | F115: 50000 | I115: =SUMIFS($I$98:$I$108,$B$98:$B$108,$B115,$C$98:$C$108,I$112) -> 0 | M115: 50000 | O115: 1
B116: 2028 | C116: =SUMIFS($I$98:$I$108,$B$98:$B$108,B116,$C$98:$C$108,C$112) -> 0 | F116: 0 | I116: =SUMIFS($I$98:$I$108,$B$98:$B$108,$B116,$C$98:$C$108,I$112) -> 0 | M116: 0
B117: 2029 | C117: =SUMIFS($I$98:$I$108,$B$98:$B$108,B117,$C$98:$C$108,C$112) -> 0 | F117: =SUMIFS($I$98:$I$108,$B$98:$B$108,$B117,$C$98:$C$108,F$112) -> 0 | I117: =SUMIFS($I$98:$I$108,$B$98:$B$108,$B117,$C$98:$C$108,I$112) -> 0 | M117: 0
B118: Total | C118: =SUM(C113:E117) -> 300000 | F118: =SUM(F113:H117) -> 250000 | I118: =SUM(I113:K117) -> 10000 | L118: =SUM(C118:K118) -> 560000 | M118: 560000
B121: Beiträge Adapt+ und effektiv | M121: Gewünschter max. Betrag (max. Betrag <= Beitrag Adapt+)
B123: Jahr | D123: Beitrag Adapt+ kalk. | E123: In % anrechenbar | H123: Weitere Beträge Bund | J123: Beitrag Adapt+ effektiv | K123: % anrechenbar | M123: Jahr | N123: Betrag | P123: Unter "Gewünschter Betrag" kann ein Betrag tiefer als der maximale Förderbetrag eingetragen werden. Dieser wird im weiteren Verlauf übernommen.
B124: 2025 | C124: =SUMIF($B$68:$B$77,B124,$J$68:$L$77) -> 0 | E124: =IF(C124>0,C124*100/C83,"") ->  | G124: =SUMIF($B$113:$B$117,B124,$I$113:$K$117) -> 0 | I124: =C124-G124 -> 0 | K124: =I124*100/C83 -> 0 | M124: 2026
B125: 2026 | C125: =SUMIF($B$68:$B$77,B125,$J$68:$L$77) -> 0 | E125: =IF(C125>0,C125*100/C84,"") ->  | G125: =SUMIF($B$113:$B$117,B125,$I$113:$K$117) -> 10000 | I125: =C125-G125 -> -10000 | K125: =I125*100/C84 -> -25 | M125: 2027
B126: 2027 | C126: =SUMIF($B$68:$B$77,B126,$J$68:$L$77) -> 0 | E126: =IF(C126>0,C126*100/C85,"") ->  | G126: 0 | I126: 0 | K126: =I126*100/C85 -> 0 | M126: 2028
B127: 2028 | C127: =SUMIF($B$68:$B$77,B127,$J$68:$L$77) -> 0 | E127: =IF(C127>0,C127*100/C86,"") ->  | G127: 0 | I127: 0 | K127: =IF(I127>0,I127*100/C88,"") ->  | M127: 2029
B128: 2029 | C128: =SUMIF($B$68:$B$77,B128,$J$68:$L$77) -> 0 | E128: =IF(C128>0,C128*100/C87,"") ->  | G128: 0 | I128: 0 | K128: =IF(I128>0,I128*100/C89,"") ->  | M128: 2030
B129: Total | C129: =SUM(C124:D128) -> 0 | E129: =IF(C129<>0,AVERAGE(E124:F128),"") ->  | G129: =SUM(G124:H128) -> 10000 | I129: =SUM(I124:I128) -> -10000 | K129: =IF(I129>0,I129*100/C88,"") ->  | M129: Total | N129: =SUM(N124:N128) -> 0
B132: Gesamtübersicht | K132: ACHTUNG: Doppelfinanzierung
B134: Jahr | C134: Gesamtkosten | E134: Gesamtmittel | G134: davon Eigenmittel | I134: davon Drittmittel | K134: davon Drittmittel Bundesbeiträge | M134: davon Beiträge Adapt+ | O134: Differenz
B135: 2025 | C135: =SUMIF($B$54:$B$61,B135,$C$54:$E$61) -> 257500 | E135: =SUMIF($B$113:$B$117,B135,$M$113:$M$117)+SUMIF($B$124:$B$128,B135,$I$124:$J$128) -> 250000 | G135: =SUMIF($B$113:$B$117,B135,$C$113:$E$117) -> 100000 | I135: =SUMIF($B$113:$B$117,B135,$F$113:$H$117) -> 150000 | K135: =SUMIF($B$113:$B$117,B135,$I$113:$K$117) -> 0 | M135: =IF(ISBLANK(N124),I124,MIN(N124,I124)) -> 0 | O135: =IF(L30>0,E135-C135,"") -> 
B136: 2026 | C136: =SUMIF($B$54:$B$61,B136,$C$54:$E$61) -> 270000 | E136: =SUMIF($B$113:$B$117,B136,$M$113:$M$117)+SUMIF($B$124:$B$128,B136,$I$124:$J$128) -> 250000 | G136: =SUMIF($B$113:$B$117,B136,$C$113:$E$117) -> 200000 | I136: =SUMIF($B$113:$B$117,B136,$F$113:$H$117) -> 50000 | K136: =SUMIF($B$113:$B$117,B136,$I$113:$K$117) -> 10000 | M136: =MIN(N125,I125) -> -10000 | O136: =IF(L31>0,E136-C136,"") -> 
B137: 2027 | C137: 70000 | E137: 50000 | G137: 0 | I137: 50000 | K137: 0 | M137: 0 | O137: =IF(L32>0,E137-C137,"") -> 
B138: 2028 | C138: 0 | E138: 0 | G138: 0 | I138: 0 | K138: 0 | M138: =MIN(N127,I127) -> 0
B139: 2029 | C139: 0 | E139: 0 | G139: 0 | I139: 0 | K139: 0 | M139: =MIN(N128,I128) -> 0
B140: Total | C140: =SUM(C135:C139) -> 597500 | D140: =SUMIF($B$54:$B$56,B140,$C$54:$E$56) -> 0 | E140: =SUM(E135:E139) -> 550000 | F140: =SUMIF($B$54:$B$56,D140,$C$54:$E$56) -> 0 | G140: =SUM(G135:H139) -> 300000 | I140: =SUM(I135:J139) -> 250000 | K140: =SUM(K135:L139) -> 10000 | M140: =SUM(M135:N139) -> -10000 | O140: =E140-C140 -> -47500
B144: Dokumente
B146: Neues Dokument hochladen | G146: Sollten Sie Drittmittel aus anderen staatlichen Quellen stammen (Kanton oder ähnlich), dann bitten wir Sie dies mittels Dokument zu bestätigen.

Sheet Zahlungsplan
B3: Adapt+
B5: Entwurf Zahlungsplan
B8: Bevorzugt sind Berichte jeweils im Juli zu verschicken für Auszahlungen im September
B9: Die Berichtsperiode bezieht sich auf den Zeitraum vom 1. Juli bis und mit 30. Juni des nächsten Jahres
M10: Maximal möglicher Betrag
B11: Meilenstein | C11: Realisierung | D11: Kosten | F11: Jahr | G11: Total | I11: Zahlungsperiode | J11: Datum | K11: Betrag | L11: optional | P11: Eine Anzahlung von maximal 20% der anrechenbaren Kosten kann nach Erhalt des Protokolls der Startsitzung ausbezahlt werden. Diese Zahlung wird von der ersten Jahresrechnung abgezogen.
B12: M1 | C12: 2026-06-01 | D12: =IF(ISBLANK(B12),"",SUMIF(Kosten!E68:E77,Zahlungsplan!B12,Kosten!J68:L77)) -> 0 | F12: 2026 | G12: =SUMIFS($D$12:$D$20,$C$12:$C$20,"<="&J13,$C$12:$C$20,">"&J12) -> 0 | I12: Anzahlung max. 20% | J12: =Laufzeit!C10 -> 2025-11-01 | L12: FALSE | M12: =IF(L12=TRUE,0.2*G16,"") -> 
B13: M2 | C13: 2026-06-15 | D13: =IF(ISBLANK(B13),"",SUMIF(Kosten!E69:E78,Zahlungsplan!B13,Kosten!J69:L78)) -> 0 | F13: 2027 | G13: =SUMIFS($D$12:$D$20,$C$12:$C$20,"<="&J14,$C$12:$C$20,">"&J13) -> 0 | I13: Zahlung 2026 | J13: 2026-06-30 | K13: =G12-K12 -> 0
B14: M3 | C14: 2026-03-26 | D14: =IF(ISBLANK(B14),"",SUMIF(Kosten!E70:E79,Zahlungsplan!B14,Kosten!J70:L79)) -> 0 | F14: 2028 | G14: =SUMIFS($D$12:$D$20,$C$12:$C$20,"<="&J15,$C$12:$C$20,">"&J14) -> 0 | I14: Zahlung 2027 | J14: 2027-06-30 | K14: =G13 -> 0
B15: M4 | C15: 2027-02-01 | D15: =IF(ISBLANK(B15),"",SUMIF(Kosten!E71:E80,Zahlungsplan!B15,Kosten!J71:L80)) -> 0 | F15: 2029 | G15: =SUMIFS($D$12:$D$20,$C$12:$C$20,"<="&DATE(2029,12,31),$C$12:$C$20,">"&J15) -> 0 | I15: Zahlung 2028 | J15: 2028-06-30 | K15: =G14 -> 0
B16: M5 | C16: 2028-06-30 | D16: =IF(ISBLANK(B16),"",SUMIF(Kosten!E72:E81,Zahlungsplan!B16,Kosten!J72:L81)) -> 0 | F16: Total | G16: =SUM(G12:G15) -> 0 | I16: Zahlung 2029 | J16: 2029-06-30 | K16: =G15 -> 0
B17: M6 | C17: 2029-06-30 | D17: =IF(ISBLANK(B17),"",SUMIF(Kosten!E73:E82,Zahlungsplan!B17,Kosten!J73:L82)) -> 0 | I17: Total | K17: =SUM(K12:K16) -> 0
D18: =IF(ISBLANK(B18),"",SUMIF(Kosten!E74:E83,Zahlungsplan!B18,Kosten!J74:L83)) -> 
D19: =IF(ISBLANK(B19),"",SUMIF(Kosten!E75:E84,Zahlungsplan!B19,Kosten!J75:L84)) -> 
D20: =IF(ISBLANK(B20),"",SUMIF(Kosten!E76:E85,Zahlungsplan!B20,Kosten!J76:L85)) ->  | I20: Kontrolle Schlusszahlung mind. 20% | P20: Die Schlusszahlung muss zwingend mindestens 20% der Gesamtsumme aufweisen und darf nicht unterschritten werden.
D21: =IF(ISBLANK(B21),"",SUMIF(Kosten!E77:E86,Zahlungsplan!B21,Kosten!J77:L86)) ->  | I21: Schlusszahlung | J21: min. 20% | K21: =0.2*G16 -> 0

Sheet Listen (hidden)
A2: Arbeitspaket | C2: M1 | E2: Meilenstein | G2: Wasserwirtschaft und Hydrologie | H2: Gemeinde | I2: Deutsch | J2: Zunehmende Hitzebelastung | K2: ZH
A3: AP1 | C3: M2 | E3: Arbeitspaket | G3: Umgang mit Naturgefahren | H3: Kanton | I3: Französisch | J3: Zunehmende Sommertrockenheit | K3: BE
A4: AP2 | C4: M3 | E4: Abschluss | G4: Landwirtschaft | H4: Schweizweit | I4: Italienisch | J4: Zunehmendes Hochwasserrisiko | K4: LU
A5: AP3 | C5: M4 | E5: Andere | G5: Waldwirtschaft | H5: Regional | J5: Abnehmende Hangstabilität und zunehmende Massenbewegungen | K5: UR
A6: AP4 | C6: M5 | G6: Energie | H6: Überregional | J6: Steigende Schneefallgrenze | K6: SZ
A7: AP5 | C7: M6 | G7: Tourismus | J7: Veränderung der Sturm- und Hagelaktivität | K7: OW
A8: AP6 | C8: M7 | G8: Biodiversitätsmanagement | J8: Beeinträchtigung der Wasser-, Boden- und Luftqualität | K8: NW
A9: AP7 | C9: M8 | G9: Gesundheit Mensch | J9: Veränderung der Lebensräume, Artenzusammensetzung und Landschaft | K9: GL
A10: AP8 | C10: M9 | G10: Tiergesundheit und Lebensmittelsicherheit | J10: Ausbreitung von Schadorganismen, Krankheiten und gebietsfremden Arten | K10: ZG
A11: AP9 | G11: Raumentwicklung | J11: Verbesserte Standortbedingungen | K11: FR
G12: Wohnungswesen | J12: Indirekte Auswirkungen des Klimawandels im Ausland auf die Schweiz | K12: SO
G13: Verkehr | J13: Unerwartete Ereignisse und kombinierte Risiken | K13: BS
A14: Abschluss | C14: Projektleitung | D14: 240 | G14: Versorgungssicherheit | K14: BL
A15: Abschluss | C15: Administrativ | D15: 135 | G15: Bodenschutz | K15: SH
K16: AR
K17: AI
A18: Andere | J18: Minimierung der Risiken des Klimawandels | K18: SG
A19: Vorschuss Start | J19: Schutz der Bevölkerung, der Sachwerte und der natürlichen Lebensgrundlagen | K19: GR
A20: Abschluss | G20: Schutzmassnahmen bei Hitzeperioden | J20: Steigerung der Anpassungsfähigkeit von Gesellschaft, Wirtschaft und Umwelt an den Klimawandel | K20: AG
G21: Erarbeitung von Hitzeaktionsplänen | K21: TG
G22: Bäume im Siedlungsgebiet | K22: TI
G23: Entsiegelung von Flächen im Siedlungsgebiet | K23: VD
A24: Eigenmittel | G24: Wasser im Siedlungsgebiet | J24: die Nachhaltigkeit, | K24: VS
A25: Drittmittel | G25: Gebäudebegrünung im Siedlungsgebiet | J25: das gemeinschaftliche Vorgehen von Bund, Kantone, Gemeinden und Privaten, | K25: NE
A26: Drittmittel aus weiteren Bundesbeiträgen | G26: Beschattungselemente im Siedlungsgebiet | J26: die Vereinbarkeit der Anpassungen mit dem Klimaschutz (also der Reduktion der Emissionen) und | K26: GE
G27: Kaltluftsysteme im Siedlungsgebiet | J27: die Berücksichtigung wissenschaftlicher Erkenntnisse | K27: JU
G28: Klimaangepasste Grünflächen im Siedlungsgebiet | K28: mehrere
G29: Klimaangepasste Gewässer
G30: Planerische Instrumente für den Umgang mit Trockenheit
G31: Bewässerungskonzepte zum Umgang mit Sommertrockenheit
G32: Nutzung von Regenwasser
G33: Waldbrandkonzepte und -potenzialanalysen
G34: Analyse klimabedingter Naturgefahren
G35: Schutzmassnahmen gegen Oberflächenabfluss
G36: Schwammstadtkonzepte/-massnahmen
G37: Diversifikation von Tourismusangeboten
G38: Monitoring von klimasensitiven Schadorganismen
G39: Monitoring von klimasensitiven Krankheitsvektoren
G40: Klimaangepasste Arterhaltung

Sheet Berechnungen (hidden)
